bitfinex-derivatives/quotes_BTCF0:USTF0_20230901
["timestamp","ask_amount","ask_price","bid_price","bid_amount"]
[1693593568207,0.84226125,25541.0,25540.0,0.38751001]
[1693593572914,0.73288311,25541.0,25540.0,0.38751001]
[1693593573307,0.58596811,25541.0,25540.0,0.41832819]
[1693593573508,0.47287134,25541.0,25540.0,0.56524719]
[1693593574313,0.03212834,25541.0,25540.0,0.71216619]
[1693593574515,0.1583,25544.0,25543.0,0.4239]
[1693593574708,0.293772,25546.0,25543.0,1.31932118]
[1693593574916,0.293772,25546.0,25545.0,0.4239]
[1693593575108,0.293772,25546.0,25545.0,0.71768]
[1693593575315,0.293772,25546.0,25545.0,0.74849818]
[1693593575513,0.146885,25546.0,25545.0,0.74849818]
[1693593577621,0.146885,25546.0,25545.0,0.75449818]
[1693593577810,0.47133013,25547.0,25545.0,0.90138818]
[1693593578012,0.47133013,25547.0,25546.0,0.74848418]
[1693593578013,0.32444813,25547.0,25546.0,0.74848418]
[1693593578409,0.17756713,25547.0,25546.0,0.76848418]
[1693593578612,0.03068613,25547.0,25546.0,0.91536818]
[1693593578819,0.293748,25548.0,25546.0,0.91536818]
[1693593579022,0.293747,25548.0,25547.0,0.74846418]
[1693593579813,0.146873,25548.0,25547.0,0.74846418]
[1693593580228,0.45084,25549.0,25547.0,0.89534218]
[1693593580423,0.30397,25549.0,25548.0,0.74846218]
[1693593580624,0.14687,25549.0,25548.0,0.74846218]
[1693593580826,0.305458,25551.0,25548.0,1.06220618]
[1693593581023,0.146858,25551.0,25550.0,0.4239]
[1693593581526,0.146858,25551.0,25550.0,0.76844018]
[1693593581919,0.03134247,25552.0,25551.0,0.4239]
[1693593582117,0.452279,25554.0,25551.0,0.89861818]
[1693593582429,0.293678,25554.0,25553.0,0.4239]
[1693593582628,0.55361477,25554.0,25553.0,0.45471818]
[1693593583718,0.440518,25554.0,25553.0,0.45471818]
[1693593583925,0.440518,25554.0,25553.0,0.45771818]
[1693593584624,0.440518,25554.0,25553.0,0.46071818]
[1693593585727,0.293678,25554.0,25553.0,0.46071818]
[1693593586225,0.03157575,25554.0,25553.0,0.46071818]
[1693593586421,0.146833,25555.0,25553.0,0.46071818]
[1693593586621,0.293668,25555.0,25554.0,0.45471818]
[1693593587324,0.47873529,25557.0,25554.0,0.45471818]
[1693593587522,0.33191129,25557.0,25556.0,0.4239]
[1693593587725,0.03158829,25557.0,25556.0,0.4239]
[1693593588026,0.146821,25557.0,25556.0,0.4239]
[1693593588229,0.440463,25557.0,25556.0,0.4239]
[1693593588620,0.440463,25557.0,25556.0,0.4269]
[1693593588816,0.66293791,25557.0,25556.0,0.4269]
[1693593589025,0.55355977,25557.0,25556.0,0.4269]
[1693593589226,0.66293791,25557.0,25556.0,0.4269]
[1693593589626,1.25365891,25557.0,25556.0,0.003]
[1693593589929,0.80977891,25556.0,25555.0,0.39851787]
[1693593590129,0.82977891,25556.0,25555.0,0.39851787]
[1693593591329,0.610304,25556.0,25555.0,0.43533605]
[1693593591530,0.463478,25556.0,25555.0,0.40451787]
[1693593591832,0.443478,25556.0,25555.0,0.43533605]
[1693593592419,0.443478,25556.0,25555.0,0.006]
[1693593592831,0.55657477,25556.0,25555.0,0.006]
[1693593593030,0.66595291,25556.0,25555.0,0.006]
[1693593594823,0.55657477,25556.0,25555.0,0.006]
[1693593595230,0.66595291,25556.0,25555.0,0.006]
[1693593595432,0.55657477,25556.0,25555.0,0.006]
[1693593595730,0.66595291,25556.0,25555.0,0.006]
[1693593595919,0.68595291,25556.0,25555.0,0.006]
[1693593596122,0.66595291,25556.0,25555.0,0.006]
[1693593596322,0.55657477,25556.0,25555.0,0.006]
[1693593596528,0.003,25556.0,25555.0,0.633]
[1693593596730,0.003,25556.0,25555.0,0.653]
[1693593596934,0.003,25556.0,25555.0,0.68381818]
[1693593599840,0.003,25556.0,25555.0,0.68081818]
[1693593600039,0.003,25556.0,25555.0,0.68381818]
[1693593601540,0.93663358,25562.0,25556.0,0.03081818]
[1693593601742,0.1506988,25564.0,25561.0,0.627]
[1693593601743,0.4442658,25564.0,25561.0,0.627]
[1693593601946,0.2974818,25564.0,25563.0,0.627]
[1693593602237,0.32865778,25564.0,25563.0,0.65781818]
[1693593602833,0.32865778,25564.0,25563.0,0.627]
[1693593603030,0.32865778,25564.0,25563.0,0.65781818]
[1693593603234,0.17795698,25564.0,25563.0,0.627]
[1693593603443,0.14819055,25564.0,25563.0,0.627]
[1693593604036,0.14819055,25564.0,25563.0,0.65781818]
[1693593604231,0.03509378,25564.0,25563.0,0.66381818]
[1693593604435,0.03117598,25564.0,25563.0,0.66381818]
[1693593604638,0.1548,25565.0,25563.0,0.66381818]
[1693593604941,0.1548,25565.0,25564.0,0.65781818]
[1693593605245,0.15572,25566.0,25564.0,0.65781818]
[1693593605539,0.1877739,25566.0,25565.0,0.65781818]
[1693593605731,0.1608,25568.0,25565.0,0.67781818]
[1693593605933,0.0039178,25572.0,25568.0,1.254]
[1693593606149,0.339,25572.0,25571.0,0.627]
[1693593606440,0.02,25572.0,25571.0,0.65781818]
[1693593606643,0.13701457,25572.0,25571.0,0.627]
[1693593606938,0.76401457,25572.0,25566.0,0.627]
[1693593607141,0.6509178,25572.0,25566.0,0.627]
[1693593607339,0.6509178,25572.0,25571.0,0.003]
[1693593607340,0.0239178,25572.0,25571.0,0.003]
[1693593607537,0.24639271,25572.0,25571.0,0.003]
[1693593607845,0.24639271,25572.0,25571.0,0.006]
[1693593608237,1.2039178,25570.0,25565.0,0.627]
[1693593608431,0.627,25567.0,25562.0,0.627]
[1693593608638,0.647,25567.0,25562.0,0.627]
[1693593609642,0.647,25567.0,25566.0,0.003]
[1693593609949,0.3149,25569.0,25566.0,0.63]
[1693593610139,0.3149,25569.0,25566.0,0.627]
[1693593610345,0.005,25567.0,25566.0,0.627]
[1693593610643,0.005,25567.0,25566.0,0.65781818]
[1693593610831,0.11509677,25567.0,25566.0,0.003]
[1693593611036,0.11509677,25567.0,25566.0,0.633]
[1693593611037,0.11609677,25567.0,25566.0,0.633]
[1693593611242,0.003,25567.0,25566.0,0.66381818]
[1693593611434,0.003,25567.0,25566.0,0.68381818]
[1693593612636,0.005,25567.0,25566.0,0.68381818]
[1693593612948,0.005,25567.0,25566.0,0.66381818]
[1693593613244,0.005,25567.0,25566.0,0.68381818]
[1693593613541,0.003,25567.0,25566.0,0.68081818]
[1693593613739,0.005,25567.0,25566.0,0.68381818]
[1693593613940,0.11509677,25567.0,25566.0,0.003]
[1693593614139,0.11809677,25567.0,25566.0,0.006]
[1693593614337,0.13809677,25567.0,25566.0,0.005]
[1693593614539,0.22747491,25567.0,25566.0,0.005]
[1693593614841,0.24747491,25567.0,25566.0,0.005]
[1693593615040,0.24447491,25567.0,25566.0,0.002]
[1693593615231,0.24747491,25567.0,25566.0,0.004]
[1693593616238,0.13809677,25567.0,25566.0,0.004]
[1693593616544,0.005,25567.0,25566.0,0.631]
[1693593616846,0.005,25567.0,25566.0,0.66181818]
[1693593621148,0.005,25567.0,25566.0,0.66174344]
[1693593622560,0.005,25567.0,25566.0,0.00392526]
[1693593623155,0.22747491,25567.0,25566.0,0.00392526]
[1693593623463,0.11809677,25567.0,25566.0,0.00392526]
[1693593623661,0.22747491,25567.0,25566.0,0.00392526]
[1693593625565,0.11809677,25567.0,25566.0,0.00392526]
[1693593626865,0.005,25567.0,25566.0,0.03474344]
[1693593627065,0.005,25567.0,25566.0,0.63092526]
[1693593627260,0.005,25567.0,25566.0,0.42692526]
[1693593627569,0.005,25567.0,25566.0,0.45774344]
[1693593628372,0.11809677,25567.0,25566.0,0.42692526]
[1693593629661,0.11809677,25567.0,25566.0,0.45774344]
[1693593629862,0.005,25567.0,25566.0,0.42692526]
[1693593631571,0.005,25567.0,25566.0,0.45774344]
[1693593633477,0.55838377,25567.0,25566.0,0.57369426]
[1693593634174,0.55838377,25567.0,25566.0,0.60451244]
[1693593634376,0.55838377,25567.0,25566.0,0.57369426]
[1693593634675,0.005,25567.0,25566.0,0.89805044]
[1693593635263,0.005,25567.0,25566.0,1.04481944]
[1693593636070,0.003,25567.0,25566.0,1.04289418]
[1693593636272,0.005,25567.0,25566.0,1.04489418]
[1693593637274,0.151763,25567.0,25566.0,1.04489418]
[1693593637973,0.445289,25567.0,25566.0,0.427]
[1693593638576,0.445289,25567.0,25566.0,0.60458718]
[1693593638877,0.445289,25567.0,25566.0,0.573769]
[1693593639979,0.19394035,25577.0,25574.0,1.05]
[1693593640173,0.146589,25598.0,25591.0,0.3]
[1693593640373,0.56866937,25601.0,25596.0,0.39300001]
[1693593640573,0.56866937,25601.0,25597.0,0.73977]
[1693593640773,0.19863054,25598.0,25597.0,0.14659]
[1693593640977,0.58769145,25598.0,25597.0,0.423]
[1693593641177,0.8866658,25598.0,25596.0,0.40154758]
[1693593641385,0.51563752,25607.0,25602.0,0.3]
[1693593641684,0.51563752,25607.0,25598.0,0.146585]
[1693593641685,0.3,25599.0,25598.0,0.146585]
[1693593641871,0.22247491,25599.0,25597.0,0.146591]
[1693593642184,0.0039078,25598.0,25597.0,0.003]
[1693593642481,0.55285477,25598.0,25597.0,0.629]
[1693593642675,0.1534,25599.0,25597.0,0.76856055]
[1693593642982,0.1534,25599.0,25598.0,0.77767055]
[1693593643172,0.1534,25599.0,25598.0,0.71942703]
[1693593643577,0.1534,25599.0,25598.0,0.88601303]
[1693593643784,0.1534,25599.0,25598.0,0.88990303]
[1693593644175,0.1534,25599.0,25598.0,0.89190303]
[1693593644477,0.1534,25599.0,25598.0,0.85590303]
[1693593644681,0.1534,25599.0,25598.0,1.02248903]
[1693593645183,0.1534,25599.0,25598.0,0.85590303]
[1693593645378,0.1534,25599.0,25598.0,1.00248903]
[1693593645578,0.1534,25599.0,25598.0,1.02048903]
[1693593646675,0.1634,25602.0,25601.0,0.293134]
[1693593646881,0.1634,25602.0,25601.0,1.16312803]
[1693593647180,0.1634,25602.0,25601.0,1.01656103]
[1693593647684,0.1634,25602.0,25601.0,1.16312903]
[1693593647874,0.146537,25607.0,25603.0,0.3]
[1693593648074,0.146522,25609.0,25606.0,0.62989]
[1693593648278,0.00391,25607.0,25606.0,0.00389]
[1693593648583,0.11700677,25607.0,25606.0,0.00389]
[1693593648983,0.293063,25608.0,25606.0,0.00389]
[1693593649172,0.40244114,25608.0,25606.0,0.00389]
[1693593649379,0.293063,25608.0,25606.0,0.00389]
[1693593649574,0.293063,25608.0,25603.0,0.003]
[1693593649575,0.626,25607.0,25603.0,0.003]
[1693593649873,1.06565,25604.0,25603.0,0.003]
[1693593650076,0.293102,25604.0,25603.0,0.629]
[1693593650277,0.45087691,25604.0,25603.0,0.629]
[1693593650476,0.19494777,25604.0,25603.0,0.626]
[1693593650882,1.22342791,25604.0,25600.0,0.62991]
[1693593651077,0.11309677,25603.0,25600.0,0.62991]
[1693593651278,0.10937814,25602.0,25600.0,0.776483]
[1693593651486,0.10937814,25602.0,25600.0,0.81004147]
[1693593651487,0.25965977,25602.0,25600.0,0.81004147]
[1693593651682,0.25965977,25602.0,25600.0,0.776483]
[1693593651683,0.146563,25602.0,25600.0,0.776483]
[1693593652182,0.25966477,25601.0,25600.0,0.037]
[1693593652384,0.66217891,25601.0,25600.0,0.037]
[1693593652589,1.45474691,25601.0,25599.0,0.15647649]
[1693593652884,1.45474691,25601.0,25590.0,0.0969]
[1693593652885,0.586388,25596.0,25590.0,0.0969]
[1693593653088,1.44847491,25600.0,25590.0,0.0969]
[1693593653089,0.001,25603.0,25597.0,0.00391]
[1693593653272,0.00763875,25604.0,25602.0,0.3]
[1693593653475,0.00763875,25604.0,25603.0,0.5306595]
[1693593653678,0.626,25610.0,25603.0,1.78347004]
[1693593653876,0.146526,25609.0,25607.0,0.626]
[1693593654076,0.146522,25610.0,25607.0,0.772535]
[1693593654294,0.292989,25615.0,25610.0,0.3]
[1693593654586,0.166491,25615.0,25611.0,0.146514]
[1693593654791,0.439506,25613.0,25608.0,0.626]
[1693593654977,1.065506,25613.0,25608.0,0.666]
[1693593655176,0.146491,25615.0,25610.0,0.626]
[1693593655380,0.037,25615.0,25614.0,0.62991]
[1693593655581,0.69894791,25615.0,25614.0,0.626]
[1693593656092,0.037,25615.0,25614.0,0.8873925]
[1693593656288,0.00012,25619.0,25618.0,0.3]
[1693593656488,0.4608,25627.0,25620.0,0.00391]
[1693593656685,0.4608,25627.0,25620.0,0.62991]
[1693593656686,0.626,25625.0,25620.0,0.62991]
[1693593656883,0.626,25625.0,25620.0,0.626]
[1693593656884,0.439317,25624.0,25620.0,0.626]
[1693593657082,0.84847491,25623.0,25618.0,0.62991]
[1693593657393,0.3,25621.0,25616.0,0.626]
[1693593657599,0.292924,25620.0,25618.0,0.626]
[1693593657891,0.166459,25621.0,25620.0,0.00391]
[1693593657892,0.146459,25621.0,25620.0,0.00391]
[1693593658092,0.146431,25626.0,25620.0,0.942834]
[1693593658288,0.292864,25626.0,25624.0,0.626]
[1693593658597,0.292864,25626.0,25620.0,0.626]
[1693593658598,0.43932,25624.0,25620.0,0.626]
[1693593658788,0.45932,25624.0,25620.0,0.629]
[1693593658989,0.439353,25622.0,25620.0,0.629]
[1693593659184,0.459353,25622.0,25620.0,0.629]
[1693593659379,0.22247491,25621.0,25620.0,0.627]
[1693593659695,0.146458,25621.0,25620.0,0.627]
[1693593659988,0.40601277,25621.0,25620.0,0.64888]
[1693593660190,0.42201277,25621.0,25620.0,0.65188]
[1693593660388,0.12909677,25621.0,25620.0,0.65579]
[1693593660585,0.016,25621.0,25620.0,0.7467755]
[1693593660888,0.016,25621.0,25620.0,0.8912405]
[1693593661088,0.14645,25623.0,25620.0,0.65379]
[1693593661295,0.1608,25627.0,25623.0,0.00391]
[1693593661589,0.292872,25625.0,25623.0,0.00288]
[1693593661782,0.439338,25623.0,25620.0,0.007]
[1693593662181,0.22247491,25622.0,25620.0,0.007]
[1693593662380,0.146457,25621.0,25620.0,0.004]
[1693593662587,0.146457,25621.0,25620.0,0.65391]
[1693593662588,0.007,25621.0,25620.0,0.65391]
[1693593662792,0.12009677,25621.0,25620.0,0.63391]
[1693593662991,0.41301077,25621.0,25620.0,0.004]
[1693593663195,1.085371,25621.0,25615.0,0.626]
[1693593663388,0.439407,25619.0,25615.0,0.626]
[1693593663588,0.459407,25619.0,25615.0,0.626]
[1693593663788,0.84847491,25618.0,25614.0,0.00391]
[1693593664091,0.292962,25617.0,25615.0,0.0909855]
[1693593664399,0.146476,25618.0,25616.0,0.62991]
[1693593664698,0.146476,25618.0,25615.0,0.037]
[1693593664699,0.626,25617.0,25615.0,0.037]
[1693593664894,1.14859677,25616.0,25615.0,0.00643104]
[1693593665190,0.48920654,25616.0,25615.0,0.037]
[1693593665396,0.50920654,25616.0,25615.0,0.047]
[1693593665594,0.65569354,25616.0,25615.0,0.047]
[1693593665791,0.65569354,25616.0,25615.0,0.01]
[1693593665995,1.28169354,25616.0,25615.0,0.01]
[1693593666208,1.085461,25616.0,25609.0,0.146523]
[1693593666396,1.085461,25616.0,25611.0,0.626]
[1693593666589,0.1626,25615.0,25611.0,0.626]
[1693593666791,0.40608877,25614.0,25612.0,0.03355847]
[1693593666993,0.439489,25614.0,25612.0,0.626]
[1693593667395,0.11309677,25613.0,25610.0,0.626]
[1693593667592,0.459489,25614.0,25611.0,0.001]
[1693593667593,0.439524,25612.0,25611.0,0.001]
[1693593667894,0.63575654,25612.0,25611.0,0.001]
[1693593668102,0.65575654,25612.0,25611.0,0.001]
[1693593668395,0.293016,25612.0,25611.0,0.65955847]
[1693593668601,0.40611277,25612.0,25611.0,0.638]
[1693593669001,0.3,25611.0,25610.0,0.008]
[1693593669197,0.459545,25611.0,25609.0,0.08961889]
[1693593669590,0.60606,25611.0,25609.0,0.12317736]
[1693593669893,0.66921977,25610.0,25609.0,0.08961889]
[1693593670093,0.68921977,25610.0,25609.0,0.08961889]
[1693593670295,0.80231654,25610.0,25609.0,0.08961889]
[1693593670897,0.78231654,25610.0,25609.0,0.10861889]
[1693593671101,0.80231654,25610.0,25609.0,0.10861889]
[1693593671498,0.80231654,25610.0,25609.0,0.08961889]
[1693593671700,0.80231654,25610.0,25609.0,0.09161889]
[1693593671701,0.82231654,25610.0,25609.0,0.09161889]
[1693593672005,2.65031654,25610.0,25609.0,0.09161889]
[1693593672203,2.65031654,25610.0,25603.0,0.626]
[1693593672397,2.65031654,25610.0,25603.0,0.62888]
[1693593672398,0.586152,25607.0,25603.0,0.62888]
[1693593672598,0.439647,25605.0,25603.0,0.62888]
[1693593672797,0.439647,25605.0,25603.0,0.66243847]
[1693593672998,0.19623254,25604.0,25603.0,0.62888]
[1693593673203,0.19623254,25604.0,25603.0,0.626]
[1693593673410,0.63589754,25604.0,25603.0,0.00288]
[1693593673607,1.26189754,25604.0,25603.0,0.00288]
[1693593673803,1.40845254,25604.0,25597.0,0.150501]
[1693593674013,0.626,25600.0,25597.0,0.317095]
[1693593674303,0.626,25600.0,25597.0,0.170501]
[1693593674304,0.293166,25599.0,25597.0,0.170501]
[1693593674504,0.28328134,25599.0,25597.0,0.173381]
[1693593674808,0.2414298,25598.0,25597.0,0.02679]
[1693593675304,0.002,25600.0,25597.0,1.24266577]
[1693593675508,0.003,25604.0,25602.0,0.3]
[1693593675698,0.003,25604.0,25603.0,1.212236]
[1693593675898,0.003,25604.0,25603.0,1.45471091]
[1693593676394,0.003,25604.0,25603.0,1.30815191]
[1693593677598,0.43961,25607.0,25603.0,1.30815191]
[1693593677799,0.18736403,25609.0,25606.0,0.626]
[1693593678099,0.48040803,25609.0,25607.0,0.919066]
[1693593678306,0.18736403,25609.0,25607.0,0.939066]
[1693593678806,0.3653426,25609.0,25607.0,0.42616277]
[1693593679006,0.62793903,25609.0,25607.0,0.02]
[1693593679206,0.17797857,25608.0,25606.0,0.037]
[1693593679407,0.62793903,25609.0,25606.0,0.183542]
[1693593679607,0.62793903,25609.0,25607.0,0.926]
[1693593679608,0.03166403,25609.0,25607.0,0.926]
[1693593679804,0.001,25609.0,25608.0,1.065593]
[1693593680001,0.001,25609.0,25608.0,1.232124]
[1693593680206,0.003,25609.0,25608.0,1.45459891]
[1693593680397,0.003,25609.0,25608.0,1.45368872]
[1693593680807,0.003,25609.0,25608.0,1.30715772]
[1693593681011,0.004,25609.0,25608.0,1.33915772]
[1693593681613,0.004,25609.0,25608.0,1.52268972]
[1693593681807,0.004,25609.0,25608.0,1.37706791]
[1693593682106,0.004,25609.0,25608.0,1.52859991]
[1693593684212,0.004,25609.0,25608.0,1.50859991]
[1693593684508,0.96719535,25615.0,25614.0,0.008]
[1693593684714,1.31166692,25615.0,25614.0,0.01191]
[1693593684900,0.05070335,25615.0,25614.0,1.073491]
[1693593685107,0.28041802,25617.0,25614.0,1.073491]
[1693593685505,0.43331802,25617.0,25615.0,0.22247491]
[1693593685700,0.46418517,25617.0,25615.0,0.22247491]
[1693593685914,0.48418517,25617.0,25614.0,0.930904]
[1693593686214,0.48418517,25617.0,25614.0,0.941904]
[1693593686510,0.20376715,25617.0,25616.0,0.00391]
[1693593686709,0.18376715,25617.0,25614.0,0.795407]
[1693593686917,0.18376715,25617.0,25616.0,0.00391]
[1693593686918,0.20376715,25617.0,25616.0,0.00391]
[1693593687307,0.20576715,25617.0,25616.0,0.00391]
[1693593687614,0.38474572,25617.0,25616.0,0.00391]
[1693593687803,0.38474572,25617.0,25616.0,0.150393]
[1693593688001,0.36574572,25617.0,25616.0,0.03691]
[1693593688209,0.38574572,25617.0,25616.0,0.07391]
[1693593688403,0.36574572,25617.0,25616.0,0.07391]
[1693593688608,0.38574572,25617.0,25616.0,0.07391]
[1693593689009,0.36574572,25617.0,25616.0,0.220394]
[1693593689211,0.36574572,25617.0,25616.0,0.07]
[1693593689515,0.18776715,25617.0,25616.0,0.992876]
[1693593689706,0.18776715,25617.0,25616.0,1.139359]
[1693593689707,0.1569,25617.0,25616.0,1.139359]
[1693593690209,0.14646,25620.0,25619.0,0.443305]
[1693593690210,0.0317047,25620.0,25619.0,0.443305]
[1693593690409,0.166,25622.0,25620.0,0.150369]
[1693593690620,0.51042757,25622.0,25620.0,0.11328814]
[1693593690809,0.332449,25622.0,25620.0,0.11328814]
[1693593691010,0.478898,25622.0,25620.0,0.22638491]
[1693593691313,0.0948428,25621.0,25620.0,0.00391]
[1693593691511,0.186,25622.0,25620.0,0.40620814]
[1693593691910,0.2,25622.0,25620.0,0.40620814]
[1693593692113,0.014,25622.0,25620.0,0.40620814]
[1693593692313,0.329,25634.0,25626.0,0.3]
[1693593692621,0.98205856,25638.0,25626.0,0.3]
[1693593692622,0.146314,25646.0,25638.0,0.439077]
[1693593692806,0.312628,25646.0,25645.0,0.626]
[1693593693008,0.5537848,25646.0,25642.0,0.626]
[1693593693210,0.5537848,25646.0,25644.0,0.626]
[1693593693211,0.02,25646.0,25644.0,0.626]
[1693593693418,0.1647,25648.0,25645.0,0.626]
[1693593693607,0.1647,25648.0,25647.0,0.626]
[1693593693814,0.1647,25648.0,25647.0,1.14108691]
[1693593694009,1.2,25659.0,25650.0,0.626]
[1693593694010,0.146247,25658.0,25650.0,0.626]
[1693593694218,0.02,25658.0,25654.0,0.3]
[1693593694519,0.64354834,25671.0,25654.0,0.3]
[1693593694520,0.00012,25672.0,25671.0,0.30391]
[1693593694721,0.00012,25672.0,25671.0,0.442426]
[1693593695016,0.02012,25672.0,25671.0,1.2133989]
[1693593695223,0.04012,25672.0,25671.0,0.626]
[1693593695523,0.7621,25679.0,25673.0,0.626]
[1693593695524,0.1621,25679.0,25673.0,0.626]
[1693593695823,0.1821,25679.0,25678.0,0.626]
[1693593696017,0.82951326,25679.0,25676.0,0.626]
[1693593696210,0.3,25677.0,25674.0,0.626]
[1693593696520,0.3,25677.0,25664.0,0.00391]
[1693593696521,0.3,25673.0,25664.0,0.00391]
[1693593696727,1.95376183,25670.0,25665.0,0.626]
[1693593696924,0.3,25662.0,25655.0,0.14626]
[1693593697220,0.438681,25661.0,25657.0,0.626]
[1693593697421,0.146208,25665.0,25658.0,0.22247491]
[1693593697422,0.146216,25663.0,25658.0,0.22247491]
[1693593697622,0.146216,25663.0,25658.0,0.42690176]
[1693593697623,1.32284,25662.0,25658.0,0.42690176]
[1693593697823,0.17797857,25661.0,25658.0,0.42690176]
[1693593698126,1.0304,25659.0,25658.0,0.38348594]
[1693593698317,1.0304,25659.0,25652.0,1.0304]
[1693593698318,0.3,25656.0,25647.0,1.176705]
[1693593698520,1.0304,25653.0,25645.0,1.176716]
[1693593698823,0.146273,25653.0,25650.0,0.00010661]
[1693593699127,1.64721157,25652.0,25649.0,0.292]
[1693593699319,1.0304,25650.0,25649.0,0.292]
[1693593699514,0.17797857,25650.0,25648.0,0.44452979]
[1693593699716,0.292553,25653.0,25648.0,1.0304]
[1693593700230,1.0304,25652.0,25649.0,0.00010661]
[1693593700420,0.146287,25651.0,25649.0,0.00010661]
[1693593700624,0.032,25650.0,25649.0,0.146296]
[1693593701016,0.032,25650.0,25649.0,1.237576]
[1693593701327,0.037,25652.0,25651.0,0.146286]
[1693593701524,0.037,25652.0,25651.0,1.176686]
[1693593701730,0.1318428,25652.0,25651.0,1.47239308]
[1693593702026,0.1318428,25652.0,25651.0,1.0304]
[1693593702228,0.21497857,25652.0,25651.0,1.0304]
[1693593702425,0.1318428,25652.0,25651.0,1.0304]
[1693593702626,0.1318428,25652.0,25650.0,0.210289]
[1693593702826,0.161,25654.0,25650.0,0.31966714]
[1693593703026,0.3,25659.0,25651.0,0.58741647]
[1693593703322,0.3,25659.0,25654.0,1.0304]
[1693593703525,0.3,25659.0,25654.0,1.0343]
[1693593703831,0.3,25659.0,25654.0,1.176669]
[1693593704028,1.0304,25655.0,25651.0,0.025]
[1693593704234,1.0304,25655.0,25650.0,0.064]
[1693593704235,1.0304,25652.0,25650.0,0.064]
[1693593704434,0.01189028,25650.0,25646.0,0.146314]
[1693593704620,0.01189028,25650.0,25641.0,0.29268]
[1693593704621,1.0304,25647.0,25641.0,0.29268]
[1693593704818,1.0304,25647.0,25642.0,0.11853243]
[1693593705123,1.3304,25647.0,25641.0,0.14634]
[1693593705327,1.47671,25647.0,25641.0,0.14634]
[1693593705625,1.62302,25647.0,25641.0,0.14634]
[1693593705826,1.64302,25647.0,25641.0,0.14634]
[1693593706025,1.64302,25647.0,25640.0,0.146348]
[1693593706233,1.64302,25647.0,25635.0,0.3]
[1693593706234,1.0304,25642.0,25638.0,0.146359]
[1693593706429,1.0304,25642.0,25640.0,0.146347]
[1693593706430,0.17797857,25641.0,25640.0,0.146347]
[1693593706731,0.0948428,25641.0,25640.0,0.187227]
[1693593706929,0.17797857,25641.0,25640.0,0.187227]
[1693593707125,1.50106657,25641.0,25634.0,0.146384]
[1693593707321,1.0304,25638.0,25634.0,0.146384]
[1693593707520,0.17797857,25637.0,25633.0,0.14639]
[1693593707822,0.146352,25640.0,25634.0,0.11309677]
[1693593707823,1.1845,25640.0,25634.0,0.11309677]
[1693593708023,1.1845,25640.0,25635.0,0.292756]
[1693593708331,0.1541,25640.0,25635.0,1.323156]
[1693593708626,0.1541,25640.0,25635.0,1.489534]
[1693593709030,0.1541,25640.0,25635.0,1.530414]
[1693593709334,0.1541,25640.0,25635.0,1.510414]
[1693593709728,0.1541,25640.0,25635.0,1.522414]
[1693593710130,0.14634,25642.0,25641.0,0.02167737]
[1693593710428,3.573476,25642.0,25641.0,0.02167737]
[1693593710630,3.719814,25642.0,25635.0,0.012]
[1693593710829,1.0304,25637.0,25635.0,0.012]
[1693593711134,0.17797857,25636.0,25635.0,0.038]
[1693593711532,0.17797857,25636.0,25635.0,0.012]
[1693593712124,0.17797857,25636.0,25635.0,0.026]
[1693593712931,0.17797857,25636.0,25635.0,0.038]
[1693593713927,2.55475057,25636.0,25630.0,0.146405]
[1693593714131,2.55475057,25636.0,25630.0,0.33369]
[1693593714132,1.0304,25634.0,25630.0,0.33369]
[1693593714437,0.17797857,25633.0,25630.0,0.480096]
[1693593714638,1.0304,25634.0,25633.0,0.15627232]
[1693593714933,1.20837857,25634.0,25633.0,0.15627232]
[1693593716023,1.21037857,25634.0,25633.0,0.15627232]
[1693593716935,1.21037857,25634.0,25633.0,0.16427232]
[1693593717723,0.0968428,25634.0,25633.0,0.16817232]
[1693593718021,0.51153969,25641.0,25635.0,0.585512]
[1693593718022,0.1525,25641.0,25635.0,0.585512]
[1693593718231,0.3086,25641.0,25637.0,1.0304]
[1693593718534,0.1561,25641.0,25640.0,0.0039]
[1693593718744,0.1561,25641.0,25640.0,0.477927]
[1693593719036,0.1581,25641.0,25640.0,0.70040191]
[1693593719329,0.1581,25641.0,25640.0,0.84675091]
[1693593719537,0.1581,25641.0,25640.0,1.17065091]
[1693593719538,0.002,25641.0,25640.0,1.17065091]
[1693593719735,0.1538,25649.0,25641.0,1.0304]
[1693593719932,0.1538,25649.0,25646.0,1.0304]
[1693593720133,0.1538,25649.0,25647.0,0.43893]
[1693593720338,0.1538,25649.0,25647.0,0.58524]
[1693593720535,0.1538,25649.0,25647.0,0.60524]
[1693593720832,0.1538,25649.0,25647.0,0.58524]
[1693593721035,0.1538,25649.0,25647.0,0.62412]
[1693593721337,0.1548,25649.0,25648.0,0.80769091]
[1693593721735,0.1538,25649.0,25648.0,0.82769091]
[1693593722039,0.001,25649.0,25648.0,1.85809091]
[1693593722241,0.003,25649.0,25648.0,2.04327491]
[1693593722536,0.003,25649.0,25648.0,2.00439491]
[1693593722838,0.003,25649.0,25648.0,0.84461677]
[1693593723045,0.001,25649.0,25648.0,2.46006327]
[1693593723229,0.003,25649.0,25648.0,2.66532141]
[1693593723429,0.003,25649.0,25648.0,2.08027491]
[1693593723630,0.003,25649.0,25648.0,2.66832747]
[1693593723930,0.003,25649.0,25648.0,2.11727491]
[1693593724743,0.1607,25656.0,25648.0,2.11727491]
[1693593724744,0.1607,25656.0,25649.0,1.0304]
[1693593724945,0.1607,25656.0,25654.0,1.0304]
[1693593725141,0.03091493,25659.0,25655.0,0.58506]
[1693593725438,0.17797857,25658.0,25655.0,0.64394]
[1693593725644,1.0304,25661.0,25655.0,0.75331814]
[1693593726029,1.0304,25661.0,25655.0,0.64394]